[Event "CZE-ch U14 Girls 2020"]
[Site "Kouty nad Desnou"]
[Date "2020.03.10"]
[Round "5.16"]
[White "Pejrimovska, Viola Ruby"]
[Black "Markova, Karolina"]
[Result "1/2-1/2"]
[ECO "C42"]
[WhiteElo "1600"]
[BlackElo "1497"]
[Annotator "NA RC"]
[PlyCount "98"]
[EventDate "2020.03.07"]
[EventCountry "CZE"]
[SourceTitle "playchess.com"]
[Source "ChessBase"]
[SourceQuality "1"]
[TimeControl "5400+30"]

1. e4 {[%emt 0:00:00]} e5 {[%emt 0:00:00]} 2. Nf3 {[%emt 0:00:00]} Nf6 {[%emt 0:00:00]} 3. Nxe5 {[%emt 0:00:00]} d6 {[%emt 0:00:00]} 4. Nf3 {[%emt 0:00:08]} Nxe4 {[%emt 0:00:00]} 5. Nc3 {[%emt 0:00:24]} Nxc3 {[%emt 0:00:00]} 6. dxc3 {[%emt 0:00:13]} Be7 {[%emt 0:00:24]} 7. Bf4 {[%emt 0:00:49]} O-O {[%emt 0:00:48]} 8. Qd2 {[%emt 0:00:10]} Nc6 {[%emt 0:02:16]} 9. O-O-O {[%emt 0:00:09]} Be6 {[%emt 0:00:37]} 10. Kb1 {[%emt 0:00:15]} Bf6 {[%emt 0:02:11]} 11. Bd3 {[%emt 0:00:48]} Ne5 {[%emt 0:07:48]} 12. Nxe5 {[%emt 0:07:29]} dxe5 {[%emt 0:08:16]} 13. Be3 {[%emt 0:16:31]} Be7 {[%emt 0:03:22]} 14. Qe2 {[%emt 0:02:43]} Qe8 {[%emt 0:03:15]} 15. Bb5 {[%emt 0:01:34]} c6 {[%emt 0:00:31]} 16. Bd3 {[%emt 0:00:33]} f5 {[%emt 0:04:08]} 17. f3 {[%emt 0:00:41]} Qf7 {[%emt 0:01:34]} 18. b3 {[%emt 0:01:40]} a5 {[%emt 0:03:00]} 19. g4 {[%emt 0:03:26]} b5 {[%emt 0:17:42]} 20. gxf5 {[%emt 0:06:20]} Bxf5 {[%emt 0:00:09]} 21. Bxf5 {[%emt 0:02:37]} Qxf5 {[%emt 0:00:11]} 22. Rdf1 {[%emt 0:06:45]} a4 {[%emt 0:00:47]} 23. b4 {[%emt 0:00:58]} Qf6 {[%emt 0:03:13]} 24. f4 {[%emt 0:01:41]} exf4 {[%emt 0:08:02]} 25. Bd4 {[%emt 0:02:31]} Qh4 {[%emt 0:06:28]} 26. Qe6+ {[%emt 0:19:28]} Kh8 {[%emt 0:02:25]} 27. Rhg1 {[%emt 0:01:32]} Bf6 {[%emt 0:01:22]} 28. Rg4 {[%emt 0:02:48]} Rae8 {[%emt 0:06:59]} 29. Bxf6 {[%emt 0:08:52]} Qxf6 {[%emt 0:01:07]} 30. Qxf6 {[%emt 0:01:07]} Rxf6 {[%emt 0:00:31]} 31. Rgxf4 {[%emt 0:01:26]} Ref8 {[%emt 0:00:37]} 32. Rxf6 {[%emt 0:00:21]} Rxf6 {[%emt 0:00:20]} 33. Rxf6 {[%emt 0:02:06]} gxf6 {[%emt 0:00:12]} 34. c4 {[%emt 0:00:46]} bxc4 {[%emt 0:02:15]} 35. Kb2 {[%emt 0:01:01]} f5 {[%emt 0:01:02]} 36. Kc3 {[%emt 0:00:44]} Kg7 {[%emt 0:00:27]} 37. Kxc4 {[%emt 0:00:08]} Kf6 {[%emt 0:00:51]} 38. Kd4 {[%emt 0:00:40]} Ke6 {[%emt 0:00:37]} 39. c4 {[%emt 0:01:28]} Kd6 {[%emt 0:03:39]} 40. h4 {[%emt 0:05:39]} h5 {[%emt 0:01:26]} 41. a3 {[%emt 0:01:06]} Ke6 {[%emt 0:05:24]} 42. c5 {[%emt 0:00:00]} Kf6 {[%emt 0:00:00]} 43. Ke3 {[%emt 0:00:00]} Ke5 {[%emt 0:00:00]} 44. Kf3 {[%emt 0:00:00]} f4 {[%emt 0:00:00]} 45. Ke2 {[%emt 0:00:00]} Ke6 {[%emt 0:00:00]} 46. Kf3 {[%emt 0:00:00]} Ke5 {[%emt 0:00:00]} 47. Ke2 {[%emt 0:00:00]} Ke6 {[%emt 0:00:00]} 48. Kd2 {[%emt 0:00:00]} Kf5 {[%emt 0:00:00]} 49. Ke2 {[%emt 0:00:00]} Ke6 {[%emt 0:00:00]} 1/2-1/2

[Event "CZE-ch U14 Girls 2020"]
[Site "Kouty nad Desnou"]
[Date "2020.03.10"]
[Round "5.17"]
[White "Zelbova, Lada"]
[Black "Rezna, Hedvika"]
[Result "1-0"]
[ECO "D02"]
[WhiteElo "1646"]
[BlackElo "1242"]
[Annotator "NA"]
[PlyCount "71"]
[EventDate "2020.03.07"]
[EventCountry "CZE"]
[SourceTitle "playchess.com"]
[Source "ChessBase"]
[SourceQuality "1"]
[TimeControl "5400+30"]

1. d4 {[%emt 0:00:00]} d5 {[%emt 0:00:00]} 2. Bf4 {[%emt 0:00:00]} Nf6 {[%emt 0:00:00]} 3. e3 {[%emt 0:00:00]} c5 {[%emt 0:02:03]} 4. c3 {[%emt 0:00:37]} Qb6 {[%emt 0:05:13]} 5. Qb3 {[%emt 0:03:23]} e6 {[%emt 0:05:51]} 6. Nd2 {[%emt 0:09:09]} Nc6 {[%emt 0:01:28]} 7. Ngf3 {[%emt 0:02:42]} Be7 {[%emt 0:01:17]} 8. h3 {[%emt 0:07:16]} O-O {[%emt 0:02:01]} 9. Ne5 {[%emt 0:02:26]} Nxe5 {[%emt 0:03:08]} 10. Bxe5 {[%emt 0:00:17]} Bd7 {[%emt 0:02:28]} 11. Be2 {[%emt 0:05:40]} c4 {[%emt 0:06:38]} 12. Qc2 {[%emt 0:00:08]} Rac8 {[%emt 0:09:28]} 13. O-O {[%emt 0:02:08]} Rfd8 {[%emt 0:03:20]} 14. g3 {[%emt 0:06:23]} Be8 {[%emt 0:01:02]} 15. Bxf6 {[%emt 0:12:54]} Bxf6 {[%emt 0:00:31]} 16. Kg2 {[%emt 0:04:58]} g6 {[%emt 0:04:13]} 17. h4 {[%emt 0:03:12]} h5 {[%emt 0:06:36]} 18. Rh1 {[%emt 0:05:32]} e5 {[%emt 0:07:14]} 19. Rag1 {[%emt 0:03:38]} Qe6 {[%emt 0:05:11]} 20. Kf1 {[%emt 0:02:31]} Bd7 {[%emt 0:02:27]} 21. g4 {[%emt 0:05:21]} hxg4 {[%emt 0:04:17]} 22. Bxg4 {[%emt 0:00:15]} Qe7 {[%emt 0:00:26]} 23. Bxd7 {[%emt 0:00:22]} Rxd7 {[%emt 0:00:45]} 24. h5 {[%emt 0:01:03]} e4 {[%emt 0:01:02]} 25. hxg6 {[%emt 0:00:55]} fxg6 {[%emt 0:01:01]} 26. Rxg6+ {[%emt 0:03:06]} Kf8 {[%emt 0:01:02]} 27. Qd1 {[%emt 0:01:29]} Qf7 {[%emt 0:01:46]} 28. Qg4 {[%emt 0:01:29]} Ke7 {[%emt 0:00:48]} 29. Rhh6 {[%emt 0:01:17]} Rc6 {[%emt 0:01:27]} 30. Qf5 {[%emt 0:04:28]} Rd8 {[%emt 0:02:05]} 31. Rg2 {[%emt 0:01:42]} Ra6 {[%emt 0:02:14]} 32. Rh7 {[%emt 0:01:42]} Rxa2 {[%emt 0:01:51]} 33. Rxf7+ {[%emt 0:00:33]} Kxf7 {[%emt 0:00:06]} 34. Rh2 {[%emt 0:01:04]} Rg8 {[%emt 0:02:11]} 35. Rh7+ {[%emt 0:00:51]} Rg7 {[%emt 0:00:30]} 36. Qxd5+ {[%emt 0:00:19]} 1-0

[Event "CZE-ch U14 Girls 2020"]
[Site "Kouty nad Desnou"]
[Date "2020.03.10"]
[Round "5.18"]
[White "Spacilova, Klara"]
[Black "Nagyova, Daniela"]
[Result "0-1"]
[ECO "C65"]
[WhiteElo "1188"]
[BlackElo "1560"]
[Annotator "NA"]
[PlyCount "80"]
[EventDate "2020.03.07"]
[EventCountry "CZE"]
[SourceTitle "playchess.com"]
[Source "ChessBase"]
[SourceQuality "1"]
[TimeControl "5400+30"]

1. e4 {[%emt 0:00:00]} e5 {[%emt 0:00:00]} 2. Nf3 {[%emt 0:00:00]} Nc6 {[%emt 0:00:00]} 3. Nc3 {[%emt 0:00:00]} Nf6 {[%emt 0:00:22]} 4. Bb5 {[%emt 0:00:00]} d6 {[%emt 0:01:13]} 5. O-O {[%emt 0:00:11]} Be7 {[%emt 0:00:36]} 6. d3 {[%emt 0:00:21]} Bg4 {[%emt 0:01:13]} 7. Qe2 {[%emt 0:02:12]} O-O {[%emt 0:01:18]} 8. Bxc6 {[%emt 0:01:05]} bxc6 {[%emt 0:00:36]} 9. h3 {[%emt 0:01:34]} Bh5 {[%emt 0:00:47]} 10. Nd1 {[%emt 0:14:55]} Re8 {[%emt 0:03:06]} 11. c3 {[%emt 0:01:24]} Bf8 {[%emt 0:04:20]} 12. Bg5 {[%emt 0:08:30]} d5 {[%emt 0:03:29]} 13. g4 {[%emt 0:02:31]} Bg6 {[%emt 0:01:34]} 14. Re1 {[%emt 0:00:21]} Bd6 {[%emt 0:03:47]} 15. b4 {[%emt 0:04:56]} Qd7 {[%emt 0:06:05]} 16. Nb2 {[%emt 0:00:27]} Nxg4 {[%emt 0:05:24]} 17. hxg4 {[%emt 0:09:02]} Qxg4+ {[%emt 0:00:55]} 18. Kh2 {[%emt 0:00:49]} Bh5 {[%emt 0:01:22]} 19. Rg1 {[%emt 0:01:16]} Qxf3 {[%emt 0:01:23]} 20. Qxf3 {[%emt 0:00:15]} Bxf3 {[%emt 0:00:11]} 21. Rae1 {[%emt 0:00:45]} d4 {[%emt 0:04:25]} 22. Bd2 {[%emt 0:01:59]} c5 {[%emt 0:03:46]} 23. a3 {[%emt 0:01:00]} dxc3 {[%emt 0:01:53]} 24. Bxc3 {[%emt 0:00:55]} cxb4 {[%emt 0:00:17]} 25. axb4 {[%emt 0:01:01]} Rab8 {[%emt 0:01:32]} 26. Re3 {[%emt 0:01:18]} Bxb4 {[%emt 0:07:53]} 27. Bxe5 {[%emt 0:02:45]} Rxe5 {[%emt 0:01:26]} 28. Nc4 {[%emt 0:01:19]} Rh5+ {[%emt 0:00:23]} 29. Kg3 {[%emt 0:00:38]} Rg5+ {[%emt 0:00:50]} 30. Kh2 {[%emt 0:06:22]} Rxg1 {[%emt 0:00:27]} 31. Kxg1 {[%emt 0:00:10]} Bh5 {[%emt 0:00:46]} 32. d4 {[%emt 0:01:44]} f6 {[%emt 0:02:27]} 33. f3 {[%emt 0:05:43]} Rd8 {[%emt 0:02:00]} 34. Rb3 {[%emt 0:00:41]} a5 {[%emt 0:01:08]} 35. d5 {[%emt 0:01:21]} Bf7 {[%emt 0:03:25]} 36. Rb2 {[%emt 0:00:59]} c6 {[%emt 0:01:44]} 37. Kg2 {[%emt 0:05:11]} cxd5 {[%emt 0:00:53]} 38. exd5 {[%emt 0:00:40]} Rxd5 {[%emt 0:00:39]} 39. Kf2 {[%emt 0:04:39]} Rb5 {[%emt 0:02:22]} 40. Ne3 {[%emt 0:00:52]} Be1+ {[%emt 0:00:41]} 0-1

[Event "CZE-ch U14 Girls 2020"]
[Site "Kouty nad Desnou"]
[Date "2020.03.10"]
[Round "5.19"]
[White "Vavrinkova, Marie"]
[Black "Smajzrova, Dominika"]
[Result "1-0"]
[ECO "C48"]
[WhiteElo "1240"]
[BlackElo "1487"]
[Annotator "NA"]
[PlyCount "69"]
[EventDate "2020.03.07"]
[EventCountry "CZE"]
[SourceTitle "playchess.com"]
[Source "ChessBase"]
[SourceQuality "1"]
[TimeControl "5400+30"]

1. e4 {[%emt 0:00:00]} e5 {[%emt 0:00:00]} 2. Nf3 {[%emt 0:00:00]} Nc6 {[%emt 0:00:21]} 3. Bb5 {[%emt 0:00:44]} Nf6 {[%emt 0:00:50]} 4. O-O {[%emt 0:01:00]} Bc5 {[%emt 0:00:57]} 5. Nc3 {[%emt 0:01:18]} d6 {[%emt 0:01:13]} 6. h3 {[%emt 0:01:40]} O-O {[%emt 0:00:57]} 7. d3 {[%emt 0:01:09]} h6 {[%emt 0:01:05]} 8. Na4 {[%emt 0:03:47]} Nd4 {[%emt 0:04:39]} 9. Nxd4 {[%emt 0:02:28]} Bxd4 {[%emt 0:00:54]} 10. c3 {[%emt 0:03:05]} c6 {[%emt 0:04:13]} 11. cxd4 {[%emt 0:05:33]} exd4 {[%emt 0:06:09]} 12. Bc4 {[%emt 0:01:35]} b5 {[%emt 0:00:34]} 13. Bb3 {[%emt 0:01:57]} bxa4 {[%emt 0:02:51]} 14. Bxa4 {[%emt 0:00:45]} Bb7 {[%emt 0:02:13]} 15. Qc2 {[%emt 0:01:07]} c5 {[%emt 0:05:44]} 16. Bf4 {[%emt 0:05:29]} Qe7 {[%emt 0:04:49]} 17. Rfe1 {[%emt 0:02:29]} Nd7 {[%emt 0:04:04]} 18. b4 {[%emt 0:04:47]} Rfc8 {[%emt 0:03:31]} 19. Qc4 {[%emt 0:01:52]} Nb6 {[%emt 0:03:52]} 20. Qb3 {[%emt 0:01:58]} Nxa4 {[%emt 0:01:00]} 21. Qxa4 {[%emt 0:00:19]} c4 {[%emt 0:02:11]} 22. dxc4 {[%emt 0:01:39]} Rxc4 {[%emt 0:00:50]} 23. Qb5 {[%emt 0:02:14]} Rac8 {[%emt 0:04:45]} 24. Bxd6 {[%emt 0:04:26]} Qxd6 {[%emt 0:06:06]} 25. Qxb7 {[%emt 0:00:26]} Qxb4 {[%emt 0:01:30]} 26. Qxa7 {[%emt 0:01:10]} d3 {[%emt 0:00:39]} 27. Qe3 {[%emt 0:02:42]} d2 {[%emt 0:05:00]} 28. Red1 {[%emt 0:01:19]} Rc1 {[%emt 0:10:36]} 29. Rdxc1 {[%emt 0:01:16]} dxc1=Q+ {[%emt 0:02:30]} 30. Rxc1 {[%emt 0:00:31]} Rxc1+ {[%emt 0:00:09]} 31. Qxc1 {[%emt 0:00:05]} Qxe4 {[%emt 0:00:08]} 32. g4 {[%emt 0:01:31]} Qf3 {[%emt 0:02:16]} 33. Qc8+ {[%emt 0:00:23]} Kh7 {[%emt 0:00:42]} 34. Qf5+ {[%emt 0:00:08]} Qxf5 {[%emt 0:00:54]} 35. gxf5 {[%emt 0:00:07]} 1-0

[Event "CZE-ch U14 Girls 2020"]
[Site "Kouty nad Desnou"]
[Date "2020.03.10"]
[Round "5.20"]
[White "Glasbergerova, Lucie"]
[Black "Havelkova, Beata"]
[Result "1-0"]
[ECO "B78"]
[WhiteElo "1203"]
[BlackElo "1468"]
[Annotator "NA RC"]
[PlyCount "45"]
[EventDate "2020.03.07"]
[EventCountry "CZE"]
[SourceTitle "playchess.com"]
[Source "ChessBase"]
[SourceQuality "1"]
[TimeControl "5400+30"]

1. e4 {[%emt 0:00:04]} c5 {[%emt 0:00:00]} 2. Nf3 {[%emt 0:00:07]} d6 {[%emt 0:00:00]} 3. d4 {[%emt 0:00:06]} cxd4 {[%emt 0:00:00]} 4. Nxd4 {[%emt 0:00:10]} Nf6 {[%emt 0:00:00]} 5. Nc3 {[%emt 0:00:08]} g6 {[%emt 0:00:03]} 6. Be3 {[%emt 0:00:15]} Bg7 {[%emt 0:00:07]} 7. Bc4 {[%emt 0:00:14]} O-O {[%emt 0:00:20]} 8. f3 {[%emt 0:00:26]} Nc6 {[%emt 0:00:11]} 9. Qd2 {[%emt 0:00:21]} Bd7 {[%emt 0:00:11]} 10. h4 {[%emt 0:00:52]} h5 {[%emt 0:02:22]} 11. g4 {[%emt 0:00:48]} Rc8 {[%emt 0:05:05]} 12. Bb3 {[%emt 0:00:18]} Ne5 {[%emt 0:05:19]} 13. O-O-O {[%emt 0:08:19]} Nc4 {[%emt 0:03:18]} 14. Bxc4 {[%emt 0:04:51]} Rxc4 {[%emt 0:00:07]} 15. Bh6 {[%emt 0:09:45]} Qa5 {[%emt 0:05:46]} 16. Nb3 {[%emt 0:02:36]} Qb4 {[%emt 0:06:28]} 17. a3 {[%emt 0:02:07]} Qb6 {[%emt 0:01:24]} 18. Bxg7 {[%emt 0:07:41]} Kxg7 {[%emt 0:00:12]} 19. e5 {[%emt 0:00:20]} Ne8 {[%emt 0:10:36]} 20. gxh5 {[%emt 0:05:09]} f6 {[%emt 0:09:13]} 21. hxg6 {[%emt 0:02:35]} Rh8 {[%emt 0:00:50]} 22. h5 {[%emt 0:02:29]} Rh6 {[%emt 0:00:30]} 23. Qd5 {[%emt 0:00:51]} 1-0

[Event "CZE-ch U14 Girls 2020"]
[Site "Kouty nad Desnou"]
[Date "2020.03.10"]
[Round "5.21"]
[White "Macova, Marketa"]
[Black "Stavova, Helena"]
[Result "0-1"]
[ECO "C47"]
[WhiteElo "1025"]
[BlackElo "1146"]
[Annotator "NA RC"]
[PlyCount "38"]
[EventDate "2020.03.07"]
[EventCountry "CZE"]
[SourceTitle "playchess.com"]
[Source "ChessBase"]
[SourceQuality "1"]
[TimeControl "5400+30"]

1. e4 {[%emt 0:00:00]} e5 {[%emt 0:00:00]} 2. Nf3 {[%emt 0:00:00]} Nc6 {[%emt 0:00:35]} 3. d4 {[%emt 0:00:13]} exd4 {[%emt 0:00:22]} 4. Nxd4 {[%emt 0:00:08]} Nf6 {[%emt 0:00:31]} 5. Nc3 {[%emt 0:00:12]} Bb4 {[%emt 0:01:02]} 6. Bg5 {[%emt 0:00:39]} h6 {[%emt 0:03:21]} 7. Nxc6 {[%emt 0:04:35]} bxc6 {[%emt 0:00:30]} 8. Qd4 {[%emt 0:04:08]} Bxc3+ {[%emt 0:01:46]} 9. Qxc3 {[%emt 0:05:13]} hxg5 {[%emt 0:00:36]} 10. Qe3 {[%emt 0:01:23]} Qe7 {[%emt 0:02:33]} 11. f3 {[%emt 0:02:00]} d5 {[%emt 0:02:26]} 12. Bd3 {[%emt 0:02:22]} Qe5 {[%emt 0:03:36]} 13. O-O-O {[%emt 0:01:34]} Be6 {[%emt 0:02:53]} 14. Kb1 {[%emt 0:01:31]} Rb8 {[%emt 0:02:59]} 15. b3 {[%emt 0:04:43]} O-O {[%emt 0:03:23]} 16. h3 {[%emt 0:02:24]} dxe4 {[%emt 0:04:56]} 17. fxe4 {[%emt 0:01:10]} Nd5 {[%emt 0:01:14]} 18. Qc5 {[%emt 0:04:12]} Nc3+ {[%emt 0:01:18]} 19. Qxc3 {[%emt 0:01:19]} Qxc3 {[%emt 0:00:18]} 0-1

[Event "CZE-ch U14 Girls 2020"]
[Site "Kouty nad Desnou"]
[Date "2020.03.11"]
[Round "6.12"]
[White "Trasakova, Adela"]
[Black "Fizerova, Lucie"]
[Result "0-1"]
[ECO "A87"]
[WhiteElo "1639"]
[BlackElo "1574"]
[Annotator "NA RC"]
[PlyCount "90"]
[EventDate "2020.03.07"]
[EventCountry "CZE"]
[SourceTitle "playchess.com"]
[Source "ChessBase"]
[SourceQuality "1"]
[TimeControl "5400+30"]

1. d4 {[%emt 0:00:00]} e6 {[%emt 0:00:00]} 2. c4 {[%emt 0:00:15]} f5 {[%emt 0:00:00]} 3. Nf3 {[%emt 0:00:57]} Nf6 {[%emt 0:00:09]} 4. g3 {[%emt 0:01:27]} g6 {[%emt 0:01:11]} 5. Bg2 {[%emt 0:01:21]} Bg7 {[%emt 0:00:49]} 6. O-O {[%emt 0:01:51]} O-O {[%emt 0:01:09]} 7. Nc3 {[%emt 0:01:55]} d6 {[%emt 0:01:54]} 8. Qc2 {[%emt 0:03:51]} Qe7 {[%emt 0:04:45]} 9. e4 {[%emt 0:04:43]} fxe4 {[%emt 0:04:21]} 10. Nxe4 {[%emt 0:01:12]} Nxe4 {[%emt 0:04:50]} 11. Qxe4 {[%emt 0:00:21]} Nc6 {[%emt 0:02:13]} 12. Bg5 {[%emt 0:03:21]} Qf7 {[%emt 0:01:31]} 13. Rfe1 {[%emt 0:05:20]} Nxd4 {[%emt 0:03:32]} 14. Re3 {[%emt 0:06:22]} Nc6 {[%emt 0:04:24]} 15. Re2 {[%emt 0:05:04]} e5 {[%emt 0:01:32]} 16. c5 {[%emt 0:08:46]} d5 {[%emt 0:03:49]} 17. Qh4 {[%emt 0:05:22]} e4 {[%emt 0:00:58]} 18. Ne1 {[%emt 0:00:31]} Ne5 {[%emt 0:04:03]} 19. h3 {[%emt 0:04:48]} Bd7 {[%emt 0:10:10]} 20. g4 {[%emt 0:06:37]} Nc4 {[%emt 0:03:42]} 21. Bh6 {[%emt 0:06:12]} Bxh6 {[%emt 0:08:44]} 22. Qxh6 {[%emt 0:00:29]} Rae8 {[%emt 0:01:53]} 23. b3 {[%emt 0:06:05]} Ne5 {[%emt 0:02:08]} 24. Qh4 {[%emt 0:03:07]} Qf4 {[%emt 0:04:04]} 25. Qg3 {[%emt 0:05:29]} Qxg3 {[%emt 0:01:23]} 26. fxg3 {[%emt 0:00:13]} Re7 {[%emt 0:03:46]} 27. Rd1 {[%emt 0:02:12]} c6 {[%emt 0:00:24]} 28. Nc2 {[%emt 0:02:13]} Nf3+ {[%emt 0:05:36]} 29. Bxf3 {[%emt 0:02:16]} Rxf3 {[%emt 0:00:08]} 30. Kg2 {[%emt 0:00:45]} Rc3 {[%emt 0:02:48]} 31. b4 {[%emt 0:01:20]} Rf7 {[%emt 0:00:36]} 32. Nd4 {[%emt 0:02:44]} h5 {[%emt 0:08:08]} 33. g5 {[%emt 0:01:51]} h4 {[%emt 0:01:32]} 34. g4 {[%emt 0:00:57]} Rf4 {[%emt 0:00:58]} 35. Rc2 {[%emt 0:01:53]} Rd3 {[%emt 0:05:36]} 36. Ne2 {[%emt 0:03:49]} Rxg4+ {[%emt 0:00:21]} 37. hxg4 {[%emt 0:00:10]} Rxd1 {[%emt 0:00:05]} 38. Nf4 {[%emt 0:00:49]} Kg7 {[%emt 0:00:46]} 39. Kh3 {[%emt 0:00:44]} Rg1 {[%emt 0:00:57]} 40. Rg2 {[%emt 0:01:11]} Rh1+ {[%emt 0:00:29]} 41. Rh2 {[%emt 0:00:13]} Rxh2+ {[%emt 0:00:02]} 42. Kxh2 {[%emt 0:00:10]} Bxg4 {[%emt 0:00:09]} 43. a4 {[%emt 0:00:55]} e3 {[%emt 0:01:10]} 44. Kg2 {[%emt 0:00:09]} d4 {[%emt 0:02:03]} 45. b5 {[%emt 0:00:37]} h3+ {[%emt 0:02:25]} 0-1

[Event "CZE-ch U14 Girls 2020"]
[Site "Kouty nad Desnou"]
[Date "2020.03.11"]
[Round "6.13"]
[White "Voriskova, Anna"]
[Black "Martinkova, Magdalena"]
[Result "1-0"]
[ECO "A25"]
[WhiteElo "1820"]
[BlackElo "1473"]
[Annotator "NA RC"]
[PlyCount "71"]
[EventDate "2020.03.07"]
[EventCountry "CZE"]
[SourceTitle "playchess.com"]
[Source "ChessBase"]
[SourceQuality "1"]
[TimeControl "5400+30"]

{[%evp 11,71,31,26,32,31,25,28,22,23,24,18,-6,8,3,32767,18,32767,32767,32767,32767,0,-37,20,-60,8,15,21,3,34,-2,0,0,4,-33,-23,-35,104,102,117,134,264,240,258,242,254,267,298,309,330,277,32767,32767,32767,661,853,950,32767,32767,668,1076,1694,29979]} 1. c4 {[%emt 0:00:00]} e5 {[%emt 0:00:00]} 2. Nc3 {[%emt 0:00:00]} Nc6 {[%emt 0:00:00]} 3. g3 {[%emt 0:00:20]} g6 {[%emt 0:00:19]} 4. Bg2 {[%emt 0:01:11]} Bg7 {[%emt 0:00:25]} 5. e3 {[%emt 0:01:09]} f5 {[%emt 0:02:06]} 6. Nge2 {[%emt 0:01:57]} Nf6 {[%emt 0:02:46]} 7. d3 {[%emt 0:02:13]} O-O {[%emt 0:01:28]} 8. O-O {[%emt 0:00:34]} d6 {[%emt 0:01:01]} 9. Nd5 {[%emt 0:04:02]} Nxd5 {[%emt 0:05:35] A25: English Opening vs King's Indian with ...Nc6 but without early d3.} 10. Bxd5+ {[%emt 0:04:47]} Kh8 {[%emt 0:00:14] [#]} 11. Nc3 $146 {[%emt 0:03:03]} ({Predecessor:} 11. Bg2 Rb8 12. Bd2 {½-½ (12) Kahn,E (2297)-Hardicsay,P (2284) Hungary 2008}) 11... Ne7 {[%emt 0:07:28]} 12. Bg2 {[%emt 0:02:26]} g5 {[%emt 0:10:32]} 13. f4 {[%emt 0:16:44]} gxf4 {[%emt 0:02:16]} 14. exf4 {[%emt 0:01:48]} c6 {[%emt 0:06:08]} 15. Qe2 {[%emt 0:07:47]} Ng6 {[%emt 0:07:45]} 16. Qc2 {[%emt 0:07:32]} Be6 {[%emt 0:06:29]} 17. Bd2 {[%emt 0:07:16] [#]} (17. Ne2 $11) 17... d5 {[%emt 0:05:43]} (17... exf4 $1 $17 18. Rae1 Bd7) 18. cxd5 {[%emt 0:03:28]} cxd5 {[%emt 0:00:38]} 19. fxe5 {[%emt 0:04:33]} Nxe5 {[%emt 0:06:23]} 20. Ne2 {[%emt 0:03:20]} Qb6+ {[%emt 0:05:16]} 21. Kh1 {[%emt 0:07:12]} Rac8 {[%emt 0:02:51]} 22. Qb1 {[%emt 0:00:24]} Ng4 {[%emt 0:06:20]} 23. d4 {[%emt 0:05:42]} Bxd4 $2 {[%emt 0:01:51]} (23... Bd7 $15 24. a4 Rfe8) 24. Nxd4 {[%emt 0:00:57]} Qxd4 {[%emt 0:00:31] [#]} 25. Qe1 $1 {[%emt 0:03:06]} ({Much less strong is} 25. Bc3 $6 Rxc3 26. bxc3 {[%mdl 64] Discovered Attack} Nf2+ 27. Rxf2 Qxf2 $14) 25... Rc2 {[%emt 0:03:40] [#]} (25... Qxb2 $16 26. Rb1 Qf6) 26. Bc3 $1 {[%emt 0:00:47]} Rxc3 {[%emt 0:00:18]} 27. bxc3 {[%emt 0:00:14]} Qf6 {[%emt 0:04:16]} 28. Qd2 {[%emt 0:00:56]} b6 {[%emt 0:02:15]} 29. Rae1 {[%emt 0:01:04]} Bg8 {[%emt 0:01:02]} 30. Bh3 {[%emt 0:01:08]} Qg6 {[%emt 0:04:09]} 31. Qd4+ {[%emt 0:01:51]} Nf6 {[%emt 0:02:10]} 32. Bxf5 {[%emt 0:00:30]} Qh6 {[%emt 0:00:39]} 33. Re7 {[%emt 0:02:36]} a6 {[%emt 0:01:22]} 34. Qxb6 {[%emt 0:00:44]} Ng4 {[%emt 0:02:18]} 35. Qd4+ {[%emt 0:00:50] Double Attack} Nf6 {[%emt 0:00:43]} 36. Bd3 {[%emt 0:00:54]} 1-0

[Event "CZE-ch U14 Girls 2020"]
[Site "Kouty nad Desnou"]
[Date "2020.03.11"]
[Round "6.14"]
[White "Nagyova, Daniela"]
[Black "Hosova, Sandra"]
[Result "1-0"]
[ECO "B78"]
[WhiteElo "1560"]
[BlackElo "1297"]
[Annotator "NA"]
[PlyCount "65"]
[EventDate "2020.03.07"]
[EventCountry "CZE"]
[SourceTitle "playchess.com"]
[Source "ChessBase"]
[SourceQuality "1"]
[TimeControl "5400+30"]

1. e4 {[%emt 0:00:00]} c5 {[%emt 0:00:07]} 2. Nf3 {[%emt 0:00:00]} Nc6 {[%emt 0:01:28]} 3. d4 {[%emt 0:01:10]} cxd4 {[%emt 0:01:06]} 4. Nxd4 {[%emt 0:00:32]} g6 {[%emt 0:01:08]} 5. Nc3 {[%emt 0:00:55]} Bg7 {[%emt 0:00:38]} 6. Be3 {[%emt 0:00:32]} Nf6 {[%emt 0:00:51]} 7. Bc4 {[%emt 0:01:04]} d6 {[%emt 0:01:58]} 8. f3 {[%emt 0:01:28]} O-O {[%emt 0:01:15]} 9. Bb3 {[%emt 0:01:37]} Bd7 {[%emt 0:01:55]} 10. Qd2 {[%emt 0:01:30]} a6 {[%emt 0:01:49]} 11. O-O-O {[%emt 0:02:33]} b5 {[%emt 0:01:47]} 12. g4 {[%emt 0:01:28]} b4 {[%emt 0:02:24]} 13. Nd5 {[%emt 0:01:55]} a5 {[%emt 0:02:13]} 14. h4 {[%emt 0:03:25]} a4 {[%emt 0:03:08]} 15. Nxf6+ {[%emt 0:01:52]} Bxf6 {[%emt 0:01:51]} 16. Bd5 {[%emt 0:02:19]} Qc8 {[%emt 0:14:38]} 17. Bxc6 {[%emt 0:05:48]} b3 {[%emt 0:23:45]} 18. Bd5 {[%emt 0:10:52]} e6 {[%emt 0:03:24]} 19. a3 {[%emt 0:05:15]} exd5 {[%emt 0:02:49]} 20. exd5 {[%emt 0:01:14]} Qb7 {[%emt 0:02:27]} 21. c3 {[%emt 0:09:04]} Qxd5 {[%emt 0:01:17]} 22. h5 {[%emt 0:02:34]} g5 {[%emt 0:03:29]} 23. h6 {[%emt 0:02:06]} Rac8 {[%emt 0:05:49]} 24. Rh5 {[%emt 0:02:05]} Rc5 {[%emt 0:08:59]} 25. Qf2 {[%emt 0:03:49]} Bxd4 {[%emt 0:02:40]} 26. Bxd4 {[%emt 0:02:30]} Qc4 {[%emt 0:07:11]} 27. Bxc5 {[%emt 0:01:42]} dxc5 {[%emt 0:01:20]} 28. Rxd7 {[%emt 0:05:33]} f6 {[%emt 0:01:45]} 29. Qd2 {[%emt 0:08:25]} Qf1+ {[%emt 0:00:30]} 30. Qd1 {[%emt 0:00:30]} Qf2 {[%emt 0:00:30]} 31. Rxg5+ {[%emt 0:00:30]} fxg5 {[%emt 0:00:35]} 32. Qd5+ {[%emt 0:00:19]} Kh8 {[%emt 0:00:04]} 33. Qe5+ {[%emt 0:00:22]} 1-0